lending/lending_fUSD_20241120
["ID","MTS","AMOUNT","RATE_DAILY","PERIOD"]
[342809016,1732143170903,-500.0,0.00058904,120]
[342809017,1732143170917,-500.0,0.00058904,120]
[342809018,1732143170926,-3752.95,0.00058904,120]
[342809019,1732143170938,-694.86,0.00058904,120]
[342809020,1732143170948,-527.72,0.00058904,120]
[342809021,1732143170958,-500.0,0.00058904,120]
[342809022,1732143170968,-151.0,0.00058904,120]
[342809023,1732143170977,-2754.45,0.00058904,120]
[342809024,1732143170987,-500.0,0.00058904,120]
[342809025,1732143170997,-151.0,0.00058904,120]
[342809026,1732143171007,-750.37,0.00058904,120]
[342809027,1732143171016,-1552.42,0.00058904,120]
[342809028,1732143171026,-777.0,0.00058904,120]
[342809029,1732143171036,-586.88,0.00058904,120]
[342809030,1732143171045,-546.79,0.00058904,120]
[342809031,1732143171055,-1410.35,0.00058904,120]
[342809032,1732143171064,-151.0,0.00058904,120]
[342809033,1732143171074,-622.81,0.00058904,120]
[342809034,1732143171083,-1078.42,0.00058904,120]
[342809035,1732143171093,-2348.91,0.00058904,120]
[342809036,1732143171102,-1803.88,0.00058904,120]
[342809037,1732143171112,-875.42,0.00058904,120]
[342809038,1732143171121,-908.45,0.00058904,120]
[342809039,1732143171131,-1745.98,0.00058904,120]
[342809040,1732143171140,-643.69,0.00058904,120]
[342809041,1732143171150,-659.6,0.00058904,120]
[342809042,1732143171159,-500.0,0.00058904,120]
[342809043,1732143171168,-1212.54,0.00058904,120]
[342809044,1732143171178,-2042.25,0.00058904,120]
[342809045,1732143171188,-151.0,0.00058904,120]
[342809046,1732143171198,-828.06,0.00058904,120]
[342809047,1732143171207,-646.63,0.00058904,120]
[342809048,1732143171217,-806.31,0.00058904,120]
[342809049,1732143171226,-1287.88,0.00058904,120]
[342809050,1732143171236,-1410.77,0.00058904,120]
[342809051,1732143171245,-623.91,0.00058904,120]
[342809052,1732143171255,-1000.52,0.00058904,120]
[342809053,1732143171264,-766.21,0.00058904,120]
[342809054,1732143171274,-500.0,0.00058904,120]
[342809055,1732143171283,-1013.49,0.00058904,120]
[342809056,1732143171293,-811.56,0.00058904,120]
[342809057,1732143171302,-500.0,0.00058904,120]
[342809058,1732143171313,-500.0,0.00058904,120]
[342809059,1732143171322,-3361.2,0.00058904,120]
[342809060,1732143171332,-633.81,0.00058904,120]
[342809061,1732143171342,-1185.33,0.00058904,120]
[342809062,1732143171352,-838.48,0.00058904,120]
[342809063,1732143171363,-1382.6,0.00058904,120]
[342809064,1732143171372,-500.0,0.00058904,120]
[342809065,1732143171382,-2198.56,0.00058904,120]
[342809066,1732143171392,-658.16,0.00058904,120]
[342809067,1732143171401,-500.0,0.00058904,120]
[342809068,1732143171411,-581.06,0.00058904,120]
[342809069,1732143171420,-500.0,0.00058904,120]
[342809070,1732143171429,-843.03,0.00058904,120]
[342809071,1732143171438,-665.72,0.00058904,120]
[342809072,1732143171448,-789.82,0.00058904,120]
[342809073,1732143171457,-660.24,0.00058904,120]
[342809074,1732143171467,-500.0,0.00058904,120]
[342809075,1732143171477,-504.35,0.00058904,120]
[342809076,1732143171487,-2411.2,0.00058904,120]
[342809077,1732143171497,-773.4,0.00058904,120]
[342809078,1732143171506,-3997.56,0.00058904,120]
[342809079,1732143171515,-500.0,0.00058904,120]
[342809080,1732143171524,-559.66,0.00058904,120]
[342809081,1732143171533,-1755.1,0.00058904,120]
[342809082,1732143171542,-1021.42,0.00058904,120]
[342809083,1732143171552,-968.59,0.00058904,120]
[342809084,1732143171561,-747.74,0.00058904,120]
[342809085,1732143171571,-151.0,0.00058904,120]
[342809086,1732143171580,-650.26,0.00058904,120]
[342809087,1732143171589,-552.66,0.00058904,120]
[342809088,1732143171599,-528.53,0.00058904,120]
[342809089,1732143171608,-661.12,0.00058904,120]
[342809090,1732143171617,-4504.33,0.00058904,120]
[342809091,1732143171627,-277.88098409,0.00058904,120]
[342809092,1732143171636,-1414.7,0.00058904,120]
[342809093,1732143171644,-500.0,0.00058904,120]
[342809094,1732143171654,-1839.1,0.00058904,20]
[342809095,1732143171663,-226.403162,0.00058904,120]
[342809096,1732143171672,-600.15,0.00058904,120]
[342809097,1732143171681,-639.71,0.00058904,120]
[342809098,1732143171691,-226.403162,0.00058904,120]
[342809099,1732143171699,-500.0,0.00058904,120]
[342809100,1732143171708,-1685.02,0.00058904,120]
[342809101,1732143171717,-500.0,0.00058904,120]
[342809102,1732143171728,-438.04,0.00058904,120]
[342809103,1732143171737,-643.92,0.00058904,120]
[342809104,1732143171746,-500.0,0.00058904,120]
[342809105,1732143171755,-503.41,0.00058904,120]
[342809106,1732143171764,-1838.85,0.00058904,120]
[342809107,1732143171773,-777.36,0.00058904,120]
[342809108,1732143171783,-1088.52,0.00058904,120]
[342809109,1732143171792,-3963.88,0.00058904,120]
[342809110,1732143171801,-500.0,0.00058904,120]
[342809111,1732143171810,-439.698091,0.00058904,120]
[342809112,1732143171819,-439.698091,0.00058904,120]
[342809113,1732143171828,-508.93,0.00058904,120]
[342809114,1732143171836,-500.0,0.00058904,120]
[342809115,1732143171846,-500.0,0.00058904,120]
[342809116,1732143171854,-522.18,0.00058904,120]
[342809117,1732143171864,-674.72,0.00058904,120]
[342809118,1732143171873,-151.0,0.00058904,120]
[342809119,1732143171882,-1573.1,0.00058904,120]
[342809120,1732143171891,-500.0,0.00058904,120]
[342809121,1732143171900,-1344.45,0.00058904,120]
[342809122,1732143171911,-695.34,0.00058904,120]
[342809123,1732143171922,-993.23,0.00058904,120]
[342809124,1732143171931,-5030.76,0.00058904,120]
[342809125,1732143171940,-530.39,0.00058904,120]
[342809126,1732143171950,-1007.71,0.00058904,120]
[342809127,1732143171960,-1508.05,0.00058904,120]
[342809128,1732143171970,-845.57,0.00058904,120]
[342809129,1732143171980,-1000.0,0.00058904,30]
[342809130,1732143171991,-500.0,0.00058904,120]
[342809131,1732143172001,-1949.27,0.00058904,120]
[342809132,1732143172010,-635.4,0.00058904,120]
[342809133,1732143172019,-3671.8,0.00058904,120]
[342809134,1732143172028,-873.15,0.00058904,120]
[342809135,1732143172038,-1275.78,0.00058904,120]
[342809136,1732143172046,-500.0,0.00058904,120]
[342809137,1732143172055,-1300.6,0.00058904,120]
[342809138,1732143172065,-603.23561786,0.00058904,120]
[342809139,1732143172074,-1078.43,0.00058904,120]
[342809140,1732143172083,-729.83,0.00058904,120]
[342809141,1732143172092,-1015.57,0.00058904,120]
[342809142,1732143172101,-562.04,0.00058904,120]
[342809143,1732143172110,-2222.66,0.00058904,120]
[342809144,1732143172119,-2596.1,0.00058904,120]
[342809145,1732143172128,-1080.64,0.00058904,120]
[342809146,1732143172137,-852.14,0.00058904,120]
[342809147,1732143172147,-569.32,0.00058904,120]
[342809148,1732143172156,-1411.12131,0.00058904,120]
[342809149,1732143172165,-509.24,0.00058904,120]
[342809150,1732143172175,-500.0,0.00058904,120]
[342809151,1732143172184,-151.0,0.00058904,120]
[342809152,1732143172194,-700.0,0.00058904,120]
[342809153,1732143172204,-151.0,0.00058904,120]
[342809154,1732143172213,-151.0,0.00058904,120]
[342809155,1732143172223,-928.5,0.00058904,120]
[342809156,1732143172232,-151.0,0.00058904,120]
[342809157,1732143172241,-1411.12131,0.00058904,120]
[342809158,1732143172251,-1806.6,0.00058904,120]
[342809159,1732143172260,-500.0,0.00058904,120]
[342809160,1732143172270,-1129.79,0.00058904,120]
[342809161,1732143172279,-500.0,0.00058904,120]
[342809162,1732143172289,-2425.19,0.00058904,120]
[342809163,1732143172298,-625.0,0.00058904,120]
[342809164,1732143172307,-500.0,0.00058904,120]
[342809165,1732143172316,-1018.93,0.00058904,120]
[342809166,1732143172325,-2073.72,0.00058904,120]
[342809167,1732143172335,-151.0,0.00058904,120]
[342809168,1732143172345,-151.0,0.00058904,120]
[342809169,1732143172355,-151.0,0.00058904,120]
[342809170,1732143172365,-151.0,0.00058904,120]
[342809171,1732143172374,-151.0,0.00058904,120]
[342809172,1732143172383,-151.0,0.00058904,120]
[342809173,1732143172392,-151.0,0.00058904,120]
[342809174,1732143172401,-151.0,0.00058904,120]
[342809175,1732143172411,-1257.41,0.00058904,120]
[342809176,1732143172419,-1011.93,0.00058904,120]
[342809177,1732143172428,-1328.54,0.00058904,120]
[342809178,1732143172439,-893.2,0.00058904,120]
[342809179,1732143172449,-878.56,0.00058904,120]
[342809180,1732143172458,-1954.12,0.00058904,120]
[342809181,1732143172467,-1107.33,0.00058904,120]
[342809182,1732143172477,-5394.68,0.00058904,120]
[342809183,1732143172486,-500.0,0.00058904,120]
[342809184,1732143172495,-151.0,0.00058904,120]
[342809185,1732143172505,-151.0,0.00058904,120]
[342809186,1732143172513,-543.1,0.00058904,120]
[342809187,1732143172522,-151.0,0.00058904,120]
[342809188,1732143172531,-151.0,0.00058904,120]
[342809189,1732143172540,-151.0,0.00058904,120]
[342809190,1732143172549,-965.73,0.00058904,120]
[342809191,1732143172557,-151.0,0.00058904,120]
[342809192,1732143172566,-500.0,0.00058904,120]
[342809193,1732143172575,-151.0,0.00058904,120]
[342809194,1732143172584,-230.62999859,0.00058904,120]
[342809195,1732143172593,-151.0,0.00058904,120]
[342809196,1732143172603,-1308.091702,0.00058904,120]
[342809197,1732143172612,-1308.091702,0.00058904,120]
[342809198,1732143172621,-1317.76,0.00058904,120]
[342809199,1732143172630,-594.46,0.00058904,120]
[342809200,1732143172640,-1617.12,0.00058904,120]
[342809201,1732143172649,-657.08,0.00058904,120]
[342809202,1732143172658,-628.07,0.00058904,120]
[342809203,1732143172667,-4865.56,0.00058904,120]
[342809204,1732143172677,-296.63725908,0.00058904,120]
[342809205,1732143172686,-500.0,0.00058904,120]
[342809206,1732143172696,-1510.86,0.00058904,120]
[342809207,1732143172706,-2529.98,0.00058904,120]
[342809208,1732143172715,-635.24,0.00058904,120]
[342809209,1732143172726,-750.97,0.00058904,120]
[342809210,1732143172735,-1761.11,0.00058904,120]
[342809211,1732143172744,-624.76,0.00058904,120]
[342809212,1732143172753,-46265.17,0.00058904,120]
[342809213,1732143172762,-500.0,0.00058904,120]
[342809214,1732143172771,-880.93,0.00058904,120]
[342809215,1732143172780,-644.52,0.00058904,120]
[342809216,1732143172790,-500.0,0.00058904,120]
[342809217,1732143172798,-4390.12,0.00058904,120]
[342809218,1732143172808,-320.32270704,0.00058904,120]
[342809219,1732143172816,-3641.91,0.00058904,120]
[342809220,1732143172825,-500.0,0.00058904,120]
[342809221,1732143172835,-2046.77,0.00058904,120]
[342809222,1732143172843,-519.31,0.00058904,120]
[342809223,1732143172852,-1582.94,0.00058904,120]
[342809224,1732143172861,-1566.08,0.00058904,120]
[342809225,1732143172870,-1540.18,0.00058904,120]
[342809226,1732143172881,-500.0,0.00058904,120]
[342809227,1732143172890,-32182.96,0.00058904,120]
[342809228,1732143172899,-2395.44,0.00058904,120]
[342809229,1732143172909,-500.0,0.00058904,120]
[342809230,1732143172921,-774.88,0.00058904,120]
[342809231,1732143172930,-500.0,0.00058904,120]
[342809232,1732143172939,-500.0,0.00058904,120]
[342809233,1732143172948,-3018.97,0.00058904,120]
[342809234,1732143172958,-1221.56,0.00058904,120]
[342809235,1732143172967,-949.33,0.00058904,120]
[342809236,1732143172983,-500.0,0.00058904,120]
[342809237,1732143172993,-512.47,0.00058904,120]
[342809238,1732143173002,-975.73,0.00058904,120]
[342809239,1732143173011,-1680.87,0.00058904,120]
[342809240,1732143173020,-2068.97,0.00058904,120]
[342809241,1732143173030,-509.92,0.00058904,120]
[342809242,1732143173039,-153.24024802,0.00058904,120]
[342809243,1732143173049,-2386.08,0.00058904,120]
[342809244,1732143173057,-850.0,0.00058904,120]
[342809245,1732143173067,-2587.78,0.00058904,120]
[342809246,1732143173076,-1481.97,0.00058904,120]
[342809247,1732143173086,-500.0,0.00058904,120]
[342809248,1732143173095,-1478.74,0.00058904,120]
[342809249,1732143173104,-511.53255179,0.00058904,120]
[342809250,1732143173113,-500.0,0.00058904,120]
[342809251,1732143173122,-580.13,0.00058904,120]
[342809252,1732143173132,-1753.89,0.00058904,120]
[342809253,1732143173142,-816.51,0.00058904,120]
[342809254,1732143173151,-500.0,0.00058904,120]
[342809255,1732143173160,-10880.09,0.00058904,120]
[342809256,1732143173170,-2245.37,0.00058904,120]
[342809257,1732143173179,-483.2184457,0.00058904,120]
[342809258,1732143173188,-3622.31,0.00058904,120]
[342809259,1732143173196,-502.6,0.00058904,120]
[342809260,1732143173205,-500.0,0.00058904,120]
[342809261,1732143173214,-1317.84,0.00058904,120]
[342809262,1732143173225,-1518.89,0.00058904,90]
[342809263,1732143173234,-1643.31,0.00058904,120]
[342809264,1732143173244,-1298.63,0.00058904,120]
[342809265,1732143173254,-943.47,0.00058904,120]
[342809266,1732143173263,-500.0,0.00058904,120]
[342809267,1732143173274,-1649.32,0.00058904,120]
[342809268,1732143173283,-550.87,0.00058904,120]
[342809269,1732143173294,-5640.48,0.00058904,120]
[342809270,1732143173303,-2158.9,0.00058904,120]
[342809271,1732143173312,-1165.26,0.00058904,120]
[342809272,1732143173321,-1244.51,0.00058904,120]
[342809273,1732143173330,-500.0,0.00058904,120]
[342809274,1732143173340,-500.0,0.00058904,120]
[342809275,1732143173350,-9870.91,0.00058904,120]
[342809276,1732143173361,-1110.14,0.00058904,120]
[342809277,1732143173370,-986.78,0.00058904,120]
[342809278,1732143173380,-567.02,0.00058904,120]
[342809279,1732143173390,-651.9,0.00058904,120]
[342809280,1732143173399,-500.0,0.00058904,120]
[342809281,1732143173409,-3368.96,0.00058904,120]
[342809282,1732143173419,-6243.58,0.00058904,120]
[342809283,1732143173428,-1221.81,0.00058904,120]
[342809284,1732143173437,-1021.75,0.00058904,120]
[342809285,1732143173447,-1378.96,0.00058904,120]
[342809286,1732143173457,-500.0,0.00058904,120]
[342809287,1732143173467,-1402.48,0.00058904,120]
[342809288,1732143173479,-2324.89,0.00058904,120]
[342809289,1732143173489,-1098.99,0.00058904,7]
[342809290,1732143173499,-500.0,0.00058904,120]
[342809291,1732143173508,-3357.52,0.00058904,120]
[342809292,1732143173518,-631.52,0.00058904,120]
[342809293,1732143173527,-1503.83,0.00058904,120]
[342809294,1732143173536,-639.03758919,0.00058904,120]
[342809295,1732143173546,-610.46,0.00058904,120]
[342809296,1732143173556,-210.36578731,0.00058904,120]
[342809297,1732143173565,-676.3,0.00058904,120]
[342809298,1732143173574,-4485.14,0.00058904,120]
[342809299,1732143173584,-1449.22,0.00058904,120]
[342809300,1732143173595,-802.14,0.00058904,120]
[342809301,1732143173605,-1005.77,0.00058904,120]
[342809302,1732143173615,-62267.29,0.00058904,5]
[342809303,1732143173624,-358.78436001,0.00058904,120]
[342809304,1732143173633,-500.0,0.00058904,120]
[342809305,1732143173642,-1000.0,0.00058904,120]
[342809306,1732143173651,-1200.11,0.00058904,120]
[342809307,1732143173660,-4633.73,0.00058904,120]
[342809308,1732143173669,-500.0,0.00058904,120]
[342809309,1732143173678,-1462.06,0.00058904,120]
[342809310,1732143173687,-1071.61,0.00058904,120]
[342809311,1732143173696,-1246.53,0.00058904,120]
[342809312,1732143173705,-665.76,0.00058904,120]
[342809313,1732143173714,-1619.4,0.00058904,120]
[342809314,1732143173724,-534.16,0.00058904,120]
[342809315,1732143173733,-4155.63,0.00058904,120]
[342809316,1732143173742,-500.0,0.00058904,120]
[342809317,1732143173751,-716.03,0.00058904,120]
[342809318,1732143173759,-710.7,0.00058904,120]
[342809319,1732143173768,-1328.15,0.00058904,120]
[342809320,1732143173777,-3842.23,0.00058904,120]
[342809321,1732143173787,-1770.4,0.00058904,120]
[342809322,1732143173796,-1828.16,0.00058904,120]
[342809323,1732143173805,-734.2,0.00058904,120]
[342809324,1732143173814,-500.0,0.00058904,120]
[342809325,1732143173823,-4113.57,0.00058904,120]
[342809326,1732143173832,-3361.09,0.00058904,120]
[342809327,1732143173840,-2336.41,0.00058904,120]
[342809328,1732143173850,-914.26,0.00058904,120]
[342809329,1732143173860,-2227.59,0.00058904,120]
[342809330,1732143173870,-1225.66,0.00058904,120]
[342809331,1732143173879,-1199.34,0.00058904,120]
[342809332,1732143173888,-500.0,0.00058904,120]
[342809333,1732143173897,-818.4,0.00058904,120]
[342809334,1732143173905,-945.67,0.00058904,120]
[342809335,1732143173919,-4656.57,0.00058904,120]
[342809336,1732143173927,-656.2,0.00058904,120]
[342809337,1732143173936,-1601.15,0.00058904,120]
[342809338,1732143173945,-2590.51,0.00058904,120]
[342809339,1732143173955,-617.4,0.00058904,120]
[342809340,1732143173963,-1087.48,0.00058904,120]
[342809341,1732143173973,-1021.22,0.00058904,120]
[342809342,1732143173982,-500.0,0.00058904,120]
[342809343,1732143173993,-530.21,0.00058904,120]
[342809344,1732143174002,-4078.12,0.00058904,120]
[342809345,1732143174011,-609.85,0.00058904,120]
[342809346,1732143174021,-1271.08,0.00058904,120]
[342809347,1732143174030,-630.13,0.00058904,120]
[342809348,1732143174039,-1053.42,0.00058904,120]
[342809349,1732143174048,-868.75,0.00058904,120]
[342809350,1732143174057,-10737.37,0.00058904,21]
[342809351,1732143174066,-3054.48,0.00058904,120]
[342809352,1732143174076,-772.0,0.00058904,120]
[342809353,1732143174086,-790.82,0.00058904,120]
[342809354,1732143174096,-1615.7,0.00058904,120]
[342809355,1732143174106,-615.49462605,0.00058904,120]
[342809356,1732143174115,-2780.77,0.00058904,120]
[342809357,1732143174125,-3170.06,0.00058904,120]
[342809358,1732143174134,-530.51,0.00058904,120]
[342809359,1732143174143,-814.28,0.00058904,120]
[342809360,1732143174153,-500.0,0.00058904,120]
[342809361,1732143174162,-500.0,0.00058904,120]
[342809362,1732143174171,-500.0,0.00058904,120]
[342809363,1732143174180,-500.0,0.00058904,120]
[342809364,1732143174188,-1053.94,0.00058904,120]
[342809365,1732143174198,-832.21,0.00058904,120]
[342809366,1732143174207,-295.99425881,0.00058904,120]
[342809367,1732143174216,-559.12,0.00058904,120]
[342809368,1732143174225,-962.23,0.00058904,120]
[342809369,1732143174234,-4610.65,0.00058904,120]
[342809370,1732143174243,-630.95,0.00058904,120]
[342809371,1732143174252,-7093.52,0.00058904,120]
[342809372,1732143174262,-1497.99,0.00058904,120]
[342809373,1732143174271,-3030.53,0.00058904,120]
[342809374,1732143174280,-2002.76,0.00058904,120]
[342809375,1732143174290,-4996.62,0.00058904,120]
[342809376,1732143174299,-1038.47,0.00058904,120]
[342809377,1732143174308,-3755.03,0.00058904,120]
[342809378,1732143174317,-500.0,0.00058904,120]
[342809379,1732143174326,-500.33,0.00058904,120]
[342809380,1732143174335,-619.43,0.00058904,120]
[342809381,1732143174344,-1395.84,0.00058904,120]
[342809382,1732143174354,-6717.87,0.00058904,120]
[342809383,1732143174363,-4210.05,0.00058904,120]
[342809384,1732143174372,-4619.32,0.00058904,120]
[342809385,1732143174381,-2125.56,0.00058904,120]
[342809386,1732143174391,-1522.48,0.00058904,120]
[342809387,1732143174401,-500.0,0.00058904,120]
[342809388,1732143174411,-500.0,0.00058904,120]
[342809389,1732143174421,-2913.49,0.00058904,120]
[342809390,1732143174432,-500.0,0.00058904,120]
[342809391,1732143174442,-6408.58,0.00058904,60]
[342809392,1732143174451,-500.0,0.00058904,120]
[342809393,1732143174462,-8536.13,0.00058904,120]
[342809394,1732143174471,-931.52,0.00058904,120]
[342809395,1732143174480,-5185.83,0.00058904,120]
[342809396,1732143174490,-873.24,0.00058904,120]
[342809397,1732143174499,-524.91,0.00058904,120]
[342809398,1732143174508,-1838.8,0.00058904,120]
[342809399,1732143174517,-500.0,0.00058904,120]
[342809400,1732143174527,-1525.45,0.00058904,120]
[342809401,1732143174536,-1373.0,0.00058904,120]
[342809402,1732143174545,-1659.86,0.00058904,120]
[342809403,1732143174555,-5907.77,0.00058904,120]
[342809404,1732143174564,-647.02,0.00058904,120]
[342809405,1732143174574,-1210.69,0.00058904,120]
[342809406,1732143174583,-500.0,0.00058904,120]
[342809407,1732143174592,-526.64,0.00058904,120]
[342809408,1732143174602,-12504.89,0.00058904,120]
[342809409,1732143174611,-2076.98,0.00058904,120]
[342809410,1732143174620,-1181.36,0.00058904,120]
[342809411,1732143174630,-677.21,0.00058904,120]
[342809412,1732143174639,-2434.04,0.00058904,120]
[342809413,1732143174648,-1109.03,0.00058904,120]
[342809414,1732143174658,-1099.32,0.00058904,120]
[342809415,1732143174667,-651.95,0.00058904,120]
[342809416,1732143174676,-4681.73,0.00058904,120]
[342809417,1732143174685,-1502.22,0.00058904,120]
[342809418,1732143174694,-757.95,0.00058904,120]
[342809419,1732143174705,-986.66,0.00058904,120]
[342809420,1732143174714,-880.48,0.00058904,120]
[342809421,1732143174725,-1166.87,0.00058904,120]
[342809422,1732143174734,-1450.31,0.00058904,120]
[342809423,1732143174744,-2144.4,0.00058904,120]
[342809424,1732143174754,-548.14,0.00058904,120]
[342809425,1732143174763,-1032.14,0.00058904,120]
[342809426,1732143174772,-14474.38,0.00058904,120]
[342809427,1732143174781,-16729.96,0.00058904,120]
[342809428,1732143174791,-500.0,0.00058904,120]
[342809429,1732143174800,-500.0,0.00058904,120]
[342809430,1732143174810,-533.88,0.00058904,120]
[342809431,1732143174819,-2375.8,0.00058904,120]
[342809432,1732143174829,-726.78,0.00058904,120]
[342809433,1732143174838,-3517.73,0.00058904,120]
[342809434,1732143174848,-500.0,0.00058904,120]
[342809435,1732143174858,-2949.54,0.00058904,120]
[342809436,1732143174867,-680.36,0.00058904,120]
[342809437,1732143174877,-629.45,0.00058904,120]
[342809438,1732143174887,-500.0,0.00058904,120]
[342809439,1732143174898,-1835.32,0.00058904,120]
[342809440,1732143174910,-567.38,0.00058904,120]
[342809441,1732143174923,-1270.02,0.00058904,120]
[342809442,1732143174934,-1077.92,0.00058904,120]
[342809443,1732143174946,-1080.78,0.00058904,120]
[342809444,1732143174957,-246.16346226,0.00058904,120]
[342809445,1732143174968,-500.0,0.00058904,120]
[342809446,1732143174978,-730.91,0.00058904,120]
[342809447,1732143174988,-794.46,0.00058904,120]
[342809448,1732143174998,-836.47,0.00058904,120]
[342809449,1732143175008,-877.06,0.00058904,120]
[342809450,1732143175017,-1006.93,0.00058904,120]
[342809451,1732143175026,-873.31,0.00058904,120]
[342809452,1732143175037,-485.57138008,0.00058904,120]
[342809453,1732143175049,-897.49,0.00058904,120]
[342809454,1732143175059,-5067.66,0.00058904,120]
[342809455,1732143175068,-1213.36,0.00058904,120]
[342809456,1732143175077,-615.04,0.00058904,120]
[342809457,1732143175087,-537.82,0.00058904,120]
[342809458,1732143175096,-500.0,0.00058904,120]
[342809459,1732143175106,-572.34050653,0.00058904,120]
[342809460,1732143175115,-1001.49,0.00058904,120]
[342809461,1732143175125,-911.56,0.00058904,120]
[342809462,1732143175135,-1621.15,0.00058904,120]
[342809463,1732143175146,-1004.9,0.00058904,120]
[342809464,1732143175156,-1363.03,0.00058904,120]
[342809465,1732143175166,-670.6,0.00058904,120]
[342809466,1732143175176,-4519.72,0.00058904,120]
[342809467,1732143175186,-681.14,0.00058904,120]
[342809468,1732143175195,-597.02,0.00058904,120]
[342809469,1732143175204,-1529.3,0.00058904,120]
[342809470,1732143175214,-5382.48,0.00058904,120]
[342809471,1732143175224,-2209.36,0.00058904,120]
[342809472,1732143175234,-640.41,0.00058904,120]
[342809473,1732143175244,-1045.28,0.00058904,120]
[342809474,1732143175254,-1500.0,0.00058935,30]
[342809475,1732143175264,-1500.0,0.00058975,30]
[342809476,1732143175274,-1582.0,0.00058996,30]
[342809477,1732143175283,-3895.63043345,0.00059,120]
[342809478,1732143175293,-80599.97736961,0.00059,120]
[342809479,1732143175304,-899.99999904,0.00059,60]
[342809480,1732143175314,-5129.2511462,0.00059,120]
[342809481,1732143175324,-11634.89149339,0.00059,30]
[342809482,1732143175335,-950.0,0.00059,2]
[342809483,1732143175344,-10000.0,0.00059,120]
[342809484,1732143175354,-1500.0,0.00059021,30]
[342809485,1732143175364,-230.65631041,0.00059022,30]
[342809486,1732143175374,-1500.0,0.00059047,30]
[342809487,1732143175384,-1007.19270541,0.00059098,30]
[342809488,1732143175395,-1490.0,0.00059135,30]
[342809489,1732143175406,-1500.0,0.00059157,30]
[342809490,1732143175416,-597.23,0.00059177,30]
[342809491,1732143175426,-500.0,0.00059177,120]
[342809492,1732143175437,-500.0,0.00059177,120]
[342809493,1732143175446,-500.0,0.00059177,120]
[342809494,1732143175457,-500.0,0.00059177,120]
[342809495,1732143175467,-500.0,0.00059177,120]
[342809496,1732143175477,-500.0,0.00059177,120]
[342809497,1732143175487,-500.0,0.00059177,120]
[342809498,1732143175496,-500.0,0.00059177,120]
[342809499,1732143175506,-1252.22,0.00059177,120]
[342809500,1732143175516,-500.0,0.00059177,120]
[342809501,1732143175526,-500.0,0.00059177,120]
[342809502,1732143175537,-500.0,0.00059177,120]
[342809503,1732143175547,-500.0,0.00059177,120]
[342809504,1732143175558,-576.02,0.00059177,120]
[342809505,1732143175568,-771.31,0.00059177,120]
[342809506,1732143175580,-500.0,0.00059177,120]
[342809507,1732143175591,-500.0,0.00059177,120]
[342809508,1732143175600,-500.0,0.00059177,120]
[342809509,1732143175610,-500.0,0.00059177,120]
[342809510,1732143175619,-500.0,0.00059177,120]
[342809511,1732143175629,-500.0,0.00059177,120]
[342809512,1732143175638,-500.0,0.00059177,120]
[342809513,1732143175648,-554.38,0.00059177,120]
[342809514,1732143175658,-500.0,0.00059177,120]
[342809515,1732143175667,-601.61,0.00059177,120]